Cogmind - Beta 9.4 @@@ ROGUE MODE // 2020.03.12 @ 02:36:32 Player: cptwinky Result: Destroyed by G-73 Enforcer with Phase Gun Performance ------------- Evolutions (9) 4500 Regions Visited (12) 2400 Robots Destroyed (44) 220 Value Destroyed (1010) 1010 Prototype IDs (26) 520 Alien Tech Used (0) 0 Bonus (7800) 7800 TOTAL SCORE: 16450 Bonus ------- Devolution 7500 Aligned with FarCom 300 Cogmind --------- Core Integrity 0/800 Matter 127/300 Energy 98/100 System Corruption 4% Temperature Cool (9) Movement Core (50) Location -1/Access Parts ------- > --- POWER (1) -------- (None) > --- PROPULSION (1) --- (None) > --- UTILITY (8) ------ Advanced Terrain Scan Processor Improved Hacking Suite Advanced Hacking Suite Improved System Shield > --- WEAPON (1) ------- (None) > --- INVENTORY (4) ---- Improved Terrain Scanner Trap Reconfigurator EMP Blaster Peak State ------------ > --- POWER ------------ Micro Fission Core > --- PROPULSION ------- Impulse Thruster Field Propulsion Array > --- UTILITY ---------- Improved Heat Sink Medium Storage Unit Advanced Terrain Scan Processor Hacking Suite Improved Hacking Suite Improved Hacking Suite System Shield Trap Reconfigurator > --- WEAPON ----------- Chainsword > --- INVENTORY -------- Micro Fission Core Field Propulsion Array Advanced Signal Interpreter Improved Terrain Scanner Improved Transmission Jammer Improved Propulsion Shielding EMP Blaster [Rating: 67] Favorites ----------- Power Light Deuterium Engine Engine Light Deuterium Engine Power Core Micro Fission Core Propulsion Light Treads Treads Light Treads Leg Aluminum Leg Wheel Wheel Hover Unit Improved Antigrav System Flight Unit Improved VTOL Module Utility Seismic Analyzer Device Improved Terrain Scanner Storage Medium Storage Unit Processor Seismic Analyzer Hackware System Shield Protection Utility Shielding Weapon EM Pulse Cannon Energy Gun EM Pulse Gun Energy Cannon EM Pulse Cannon Ballistic Gun Light Assault Rifle Launcher EMP Blaster Special Weapon Mining Laser Slashing Weapon Chainsword Build | -11 -10 -10 -10 -9 -8 -7 -6 -5 -4 -3 -2 -1 ------- Run | Scr Mat Min Exi Min Mat Fac Fac Fac Fac Res Res Acc Slots Evolved -9 | . . . . . -2 -1 -1 -1 -1 -1 -1 -1 Power -1 | . . . . . -1 . . . . . . . Propulsion -4 | . . . . . . -1 -1 . . . -1 -1 Utility -1 | . . . . . -1 . . . . . . . Weapon -3 | . . . . . . . . -1 -1 -1 . . Parts Attached 112 | 21 7 . . 8 18 16 5 10 9 1 6 11 Power 8 | 2 . . . 1 1 2 . 1 . . . 1 Engine 5 | 2 . . . 1 1 1 . . . . . . Core 3 | . . . . . . 1 . 1 . . . 1 Reactor . | . . . . . . . . . . . . . Propulsion 21 | 6 . . . . . 6 2 . 2 . 2 3 Treads 4 | 2 . . . . . 2 . . . . . . Leg 1 | 1 . . . . . . . . . . . . Wheel 3 | 3 . . . . . . . . . . . . Hover 3 | . . . . . . 1 . . . . . 2 Flight 10 | . . . . . . 3 2 . 2 . 2 1 Utility 55 | 9 5 . . 1 10 3 3 9 6 1 4 4 Device 20 | 2 1 . . . 2 . . 5 3 1 3 3 Storage 6 | 1 2 . . . 2 1 . . . . . . Processor 11 | 6 1 . . . 2 . 2 . . . . . Hackware 9 | . . . . . . 2 1 3 1 . 1 1 Protection 9 | . 1 . . 1 4 . . 1 2 . . . Artifact . | . . . . . . . . . . . . . Weapon 28 | 4 2 . . 6 7 5 . . 1 . . 3 Energy Gun 8 | 2 2 . . 3 1 . . . . . . . Energy Cannon 2 | . . . . . 2 . . . . . . . Ballistic Gun 4 | 1 . . . 3 . . . . . . . . Ballistic Cannon . | . . . . . . . . . . . . . Launcher 5 | . . . . . 4 . . . . . . 1 Special Weapon 1 | 1 . . . . . . . . . . . . Impact Weapon . | . . . . . . . . . . . . . Slashing Weapon 8 | . . . . . . 5 . . 1 . . 2 Piercing Weapon . | . . . . . . . . . . . . . Special Melee Weapon . | . . . . . . . . . . . . . Unidentified Prototypes 1 | . . . . . . 1 . . . . . . Parts Lost 16 | . 2 . . 5 1 . . . . . . 8 Power 3 | . . . . 2 . . . . . . . 1 Propulsion 3 | . . . . 1 . . . . . . . 2 Utility 5 | . 1 . . . . . . . . . . 4 Weapon 5 | . 1 . . 2 1 . . . . . . 1 Highest Loss Streak 5 | . 2 . . 4 1 . . . . . . 5 Average Slot Usage (%) 89 | . 97 95 80 86 93 97 79 85 86 92 90 77 Engine 3 | . 10 10 10 7 5 . 6 1 . . . . Core 3 | . . . . . . 4 . 4 7 7 8 7 Treads 5 | . 10 10 10 10 11 10 . . . . . . Wheel 6 | . 15 15 15 12 11 10 . . . . . . Flight 6 | . . . . . . 1 18 20 15 15 7 6 Device 11 | . 7 10 10 10 11 14 12 12 8 14 16 7 Storage 5 | . 5 5 5 5 5 5 6 6 7 7 8 . Processor 12 | . 26 25 25 23 15 6 13 8 7 7 8 9 Hackware 13 | . . . . . . 6 14 23 28 30 33 39 Protection 5 | . 4 5 5 6 10 10 . . 5 . . . Energy Gun 2 | . 8 5 . 9 5 . . . . . . . Energy Cannon 3 | . . . . . 5 10 . . . . . . Ballistic Gun 1 | . 5 5 . 2 4 . . . . . . . Launcher 2 | . . . . . 6 5 . . . . . 1 Slashing Weapon 3 | . . . . . . 4 6 6 7 7 8 5 Naked Turns . | . . . . . . . . . . . . . Heaviest Build 68 | 18 50 48 48 49 68 49 18 19 19 19 18 10 Greatest Support 36 | 36 36 36 36 36 26 26 20 20 33 33 23 17 Greatest Overweight (x) 5 | 3 1 1 1 1 2 1 . . . . 5 2 Average Overweight (x) . | . . 1 1 1 1 . . . . . . . Largest Inventory Capacity 18 | 6 14 12 12 12 18 12 8 8 8 8 8 8 Average Capacity 8 | 5 11 12 12 12 11 8 8 8 8 8 8 4 Most Carried 12 | 3 6 6 10 10 12 8 8 8 8 8 8 7 Average Carried 7 | 1 5 6 9 7 10 7 7 7 7 8 7 3 Final Capacity 12 | 6 12 12 12 12 8 8 8 8 8 8 8 4 Final Carried 10 | 2 6 6 10 7 6 8 8 8 8 8 8 3 Class Distribution -------------------- 25% | Scavenger-Skirmisher 22% | Hacker-Scout 16% | Scavenger-Mutant 10% | Hacker-Mutant 8% | Mutant 7% | Hacker-Assassin 4% | Wizard-Mutant Dominant Class ---------------- Scavenger-Skirmisher | -10/Materials Scavenger-Skirmisher | -10/Mines Scavenger-Mutant | -10/Exiles Scavenger-Skirmisher | -9/Mines Scavenger-Skirmisher | -8/Materials Mutant | -7/Factory Hacker-Scout | -6/Factory Hacker-Scout | -5/Factory Hacker-Mutant | -4/Factory Hacker-Scout | -3/Research Hacker-Ninja | -2/Research Hacker-Mutant | -1/Access Resources | -11 -10 -10 -10 -9 -8 -7 -6 -5 -4 -3 -2 -1 ----------- Run | Scr Mat Min Exi Min Mat Fac Fac Fac Fac Res Res Acc Matter Collected 1293 | 458 . . . 150 214 186 . 23 77 . 37 148 Remotely . | . . . . . . . . . . . . . Salvage Created 1436 | 312 . . . 324 413 186 22 23 119 . 37 . Parts 90 | 36 . . . 16 17 4 2 4 8 . 3 . Haulers Intercepted 2 | . . . . . 2 . . . . . . . Recyclers Shooed 1 | . . . . . . 1 . . . . . . Parts Field Recycled . | . . . . . . . . . . . . . Retrieved Matter . | . . . . . . . . . . . . . Parts Self-Destructed . | . . . . . . . . . . . . . Prevented . | . . . . . . . . . . . . . Kills | -11 -10 -10 -10 -9 -8 -7 -6 -5 -4 -3 -2 -1 ------- Run | Scr Mat Min Exi Min Mat Fac Fac Fac Fac Res Res Acc Combat Hostiles Destroyed 15 | . . . . 8 6 1 . . . . . . Guns 5 | . . . . 3 2 . . . . . . . AOE 9 | . . . . 5 4 . . . . . . . Classes Destroyed 11 | 3 . . . 3 4 . 1 . . . . . Worker 5 | 2 . . . . 3 . . . . . . . Tunneler 8 | 8 . . . . . . . . . . . . Hauler 2 | . . . . . 2 . . . . . . . Recycler 3 | 1 . . . 1 . 1 . . . . . . Mechanic 1 | . . . . . 1 . . . . . . . Operator 3 | . . . . . . . 1 1 . . 1 . Watcher 7 | . . . . . 3 1 . . 3 . . . Swarmer 4 | . . . . 4 . . . . . . . . Grunt 8 | . . . . 3 5 . . . . . . . Sentry 2 | . . . . . 1 1 . . . . . . Demolisher 1 | . . . . 1 . . . . . . . . Best Kill Streak 5 | 5 . . . 4 4 1 1 1 1 . 1 . Combat Bots Only 4 | . . . . 4 2 1 . . . . . . Max Kills in Single Turn 3 | 1 . . . 3 1 1 1 1 1 . 1 . Gunslinging . | . . . . . . . . . . . . . Exploded 3 | . . . . 3 1 . . . . . . . Melee . | . . . . . . . . . . . . . Uniques/NPCs Destroyed . | . . . . . . . . . . . . . Combat | -11 -10 -10 -10 -9 -8 -7 -6 -5 -4 -3 -2 -1 -------- Run | Scr Mat Min Exi Min Mat Fac Fac Fac Fac Res Res Acc Damage Taken 2573 | . 305 . . 481 205 64 121 61 . 80 28 1228 Core 1082 | . 109 . . 21 30 . 35 61 . . . 826 Absorbed by Shields . | . . . . . . . . . . . . . Core Remaining (%) 96 | 100 . . . 83 96 100 95 92 100 100 100 . Volleys Fired 68 | 16 7 . . 10 32 3 . . . . . . Largest 4 | 3 1 . . 3 4 2 . . . . . . Hottest 126 | 100 100 . . 100 126 126 . . . . . . Shots Fired 144 | 48 7 . . 27 56 6 . . . . . . Gun 108 | 48 . . . 27 33 . . . . . . . Cannon 15 | . . . . . 9 6 . . . . . . Launcher 14 | . . . . . 14 . . . . . . . Special 7 | . 7 . . . . . . . . . . . Kinetic 42 | 16 . . . 7 19 . . . . . . . Thermal 44 | 32 7 . . 1 4 . . . . . . . Explosive 10 | . . . . . 10 . . . . . . . Electromagnetic 48 | . . . . 19 23 6 . . . . . . Robot Hit Streak 11 | 10 . . . 11 10 5 . . . . . . Robot Miss Streak 4 | 2 . . . 1 4 1 . . . . . . Penetration Max . | . . . . . . . . . . . . . Secondary Targets 1 | . . . . 1 . . . . . . . . Max Gunslinging Chain 1 | . . . . 1 . . . . . . . . Shots Hit Robots 102 | 27 . . . 19 34 8 3 2 7 . 1 1 Core Hits 67 | 12 . . . 15 27 3 1 1 5 . 1 2 Critical Hits 1 | . . . . . . 1 . . . . . . Critical Kills 1 | . . . . . . 1 . . . . . . Critical Parts Destroyed . | . . . . . . . . . . . . . Melee Attacks 80 | . . . . . . 3 14 10 17 17 8 11 Impact . | . . . . . . . . . . . . . Slashing 80 | . . . . . . 3 14 10 17 17 8 11 Piercing . | . . . . . . . . . . . . . Sneak Attacks 2 | . . . . . . 1 1 . . . . . Combat Hostiles . | . . . . . . . . . . . . . Follow-up Attacks . | . . . . . . . . . . . . . Damage Inflicted 3391 | 261 . . . 550 1410 449 220 88 314 . 58 41 Guns 787 | 261 . . . 266 260 . . . . . . . Cannons 325 | . . . . . 197 128 . . . . . . Explosions 1281 | . . . . 284 953 44 . . . . . . Melee 993 | . . . . . . 277 220 88 314 . 58 36 Ramming 5 | . . . . . . . . . . . . 5 Kinetic 246 | 90 . . . 65 91 . . . . . . . Thermal 558 | 171 . . . 296 47 44 . . . . . . Explosive 869 | . . . . . 869 . . . . . . . Electromagnetic 720 | . . . . 189 403 128 . . . . . . Impact . | . . . . . . . . . . . . . Slashing 993 | . . . . . . 277 220 88 314 . 58 36 Piercing . | . . . . . . . . . . . . . Highest Corruption 8 | . 8 8 8 8 . 3 . 2 . . . 3 Average Corruption 5 | . 8 8 8 8 . 2 . 1 . . . 1 Corruption Purged . | . . . . . . . . . . . . . Effects 25 | . 1 1 7 12 . 4 . . . . . . Message Errors 9 | . . . 3 6 . . . . . . . . Matter Fused 2 | . 1 . . 1 . . . . . . . . Heat Flow Errors 8 | . . 1 3 1 . 3 . . . . . . Energy Discharges 1 | . . . . . . 1 . . . . . . Parts Rejected 1 | . . . . 1 . . . . . . . . Data Loss (minor) 2 | . . . 1 1 . . . . . . . . Targeting Errors 2 | . . . . 2 . . . . . . . . Overload Shots . | . . . . . . . . . . . . . Overflow Damage 355 | . . . . . 99 147 89 6 14 . . . Projectiles 29 | . . . . . 29 . . . . . . . Explosions 70 | . . . . . 70 . . . . . . . Melee 256 | . . . . . . 147 89 6 14 . . . Knockbacks . | . . . . . . . . . . . . . Impact . | . . . . . . . . . . . . . Kinetic . | . . . . . . . . . . . . . Secondary . | . . . . . . . . . . . . . Self-Inflicted Damage 105 | . . . . 65 38 . . . . . . 2 Shots 3 | . . . . 2 1 . . . . . . . Rammed 1 | . . . . . . . . . . . . 1 Targets Rammed 1 | . . . . . . . . . . . . 1 Kicked . | . . . . . . . . . . . . . Crushed . | . . . . . . . . . . . . . Highest Temperature 380 | 254 380 174 274 270 372 228 . 2 . . . 23 Average Temperature 108 | 99 192 169 102 113 96 99 . 2 . . . 7 Received Heat Transfer 288 | . 24 . . 21 81 18 33 12 . . . 99 Effects 10 | . 1 . 6 . 3 . . . . . . . Shutdowns 1 | . 1 . . . . . . . . . . . Energy Bleed 1 | . . . . . 1 . . . . . . . Interference 7 | . . . 6 . 1 . . . . . . . Damage (minor) 1 | . . . . . 1 . . . . . . . Siege Activations . | . . . . . . . . . . . . . Robots Corrupted 2 | . . . . . 1 1 . . . . . . Combat Hostiles 1 | . . . . . . 1 . . . . . . Parts Fried 4 | . . . . . 3 1 . . . . . . Impact Corruptions . | . . . . . . . . . . . . . Robots Melted . | . . . . . . . . . . . . . Combat Hostiles . | . . . . . . . . . . . . . Parts Melted . | . . . . . . . . . . . . . Heat Transferred 925 | 400 . . . 375 100 50 . . . . . . Parts Sabotaged . | . . . . . . . . . . . . . Parts Stolen . | . . . . . . . . . . . . . Parts Stripped . | . . . . . . . . . . . . . Power Chain Reactions 5 | . . . . 4 . 1 . . . . . . Missiles Intercepted . | . . . . . . . . . . . . . Alert | -11 -10 -10 -10 -9 -8 -7 -6 -5 -4 -3 -2 -1 ------- Run | Scr Mat Min Exi Min Mat Fac Fac Fac Fac Res Res Acc Peak Influence 268 | 55 96 29 . 180 268 79 125 187 108 96 110 131 Average Influence 67 | 22 64 29 . 74 86 19 49 134 67 69 79 70 Maximum Alert Level 1 | . . . . . 1 . . . . . . . Low Security (%) 98 | 100 100 100 . 100 95 100 100 100 100 100 100 100 Level 1 1 | . . . . . 4 . . . . . . . Level 2 . | . . . . . . . . . . . . . Level 3 . | . . . . . . . . . . . . . Level 4 . | . . . . . . . . . . . . . Level 5 . | . . . . . . . . . . . . . High Security . | . . . . . . . . . . . . . Max Security . | . . . . . . . . . . . . . Squads Dispatched 11 | . 1 . . . 2 1 2 1 1 1 1 1 Investigation 3 | . 1 . . . 1 1 . . . . . . Extermination 1 | . . . . . . . . . . . . 1 Reinforcement 7 | . . . . . 1 . 2 1 1 1 1 . Assault . | . . . . . . . . . . . . . Garrison . | . . . . . . . . . . . . . Intercept . | . . . . . . . . . . . . . Construction Impeded . | . . . . . . . . . . . . . Haulers Reinforced . | . . . . . . . . . . . . . Stealth | -11 -10 -10 -10 -9 -8 -7 -6 -5 -4 -3 -2 -1 --------- Run | Scr Mat Min Exi Min Mat Fac Fac Fac Fac Res Res Acc Distress Signals 4 | . . . . . 3 . . . . . . 1 Communications Jammed . | . . . . . . . . . . . . . Distress Signals . | . . . . . . . . . . . . . Times Spotted 102 | . 2 . . 14 19 5 15 4 8 9 3 23 Peak Tracking Total 14 | . 1 . . 5 5 1 9 2 2 6 1 14 Tactical Retreats 11 | . . . . 2 1 . 2 . 1 1 . 4 Traps | -11 -10 -10 -10 -9 -8 -7 -6 -5 -4 -3 -2 -1 ------- Run | Scr Mat Min Exi Min Mat Fac Fac Fac Fac Res Res Acc Traps Triggered 4 | . 1 . . . . 1 . 2 . . . . Indirectly . | . . . . . . . . . . . . . Trap Hack Attempts . | . . . . . . . . . . . . . Triggered . | . . . . . . . . . . . . . Disarmed . | . . . . . . . . . . . . . Reprogrammed . | . . . . . . . . . . . . . Reused 7 | . . . . . . . . . 7 . . . Traps Reconfigurated 40 | . . . . . . . . 14 11 . 4 11 Traps Extracted . | . . . . . . . . . . . . . Installed . | . . . . . . . . . . . . . Triggered 7 | . . . . . . . . . 7 . . . Exploded 1 | . . . 1 . . . . . . . . . Machines | -11 -10 -10 -10 -9 -8 -7 -6 -5 -4 -3 -2 -1 ---------- Run | Scr Mat Min Exi Min Mat Fac Fac Fac Fac Res Res Acc Machines Disabled 6 | . . . . 3 1 . . 2 . . . . Max in Single Turn 2 | . . . . 2 1 . . 1 . . . . Garrison Access 5 | . . . . . . . . . 1 2 1 1 Machines Sabotaged . | . . . . . . . . . . . . . Garrisons Compromised . | . . . . . . . . . . . . . Overloaded Fab Kills . | . . . . . . . . . . . . . Fab Network Shutdowns . | . . . . . . . . . . . . . Hacking | -11 -10 -10 -10 -9 -8 -7 -6 -5 -4 -3 -2 -1 --------- Run | Scr Mat Min Exi Min Mat Fac Fac Fac Fac Res Res Acc Machines Accessed 47 | . 4 . 1 . 5 7 5 7 6 5 2 5 Terminals 30 | . 4 . . . 3 5 4 4 4 2 1 3 Fabricators 4 | . . . . . . 1 . 2 1 . . . Repair Stations 1 | . . . . . 1 . . . . . . . Recycling Units 4 | . . . . . . 1 1 . . 1 . 1 Scanalyzers 1 | . . . . . 1 . . . . . . . Garrison Access 6 | . . . . . . . . 1 1 2 1 1 Total Hacks 137 | . 8 . 1 . 18 23 15 30 19 9 4 10 Successful 79 | . 6 . 1 . 14 12 4 15 14 4 3 6 Failed 58 | . 2 . . . 4 11 11 15 5 5 1 4 Catastrophic 11 | . . . . . 1 4 4 1 . 1 . . Database Lockouts . | . . . . . . . . . . . . . Manual 75 | . 4 . 1 . 4 12 9 19 13 3 3 7 Terminals 88 | . 8 . . . 9 16 11 14 14 5 3 8 Fabricators 24 | . . . . . . 5 . 15 4 . . . Repair Stations 4 | . . . . . 4 . . . . . . . Recycling Units 8 | . . . . . . 2 4 . . 1 . 1 Scanalyzers 5 | . . . . . 5 . . . . . . . Garrison Access 7 | . . . . . . . . 1 1 3 1 1 Terminal Hacks 33 | . 5 . 1 . 5 5 1 5 8 . 1 2 Part Schematic 4 | . . . . . . . . 2 2 . . . Robot Analysis 3 | . 3 . . . . . . . . . . . Prototype ID Bank 1 | . 1 . . . . . . . . . . . Level Access Points 6 | . . . . . . 1 1 1 1 . 1 1 Branch Access Points 1 | . 1 . . . . . . . . . . . Emergency Access Points 1 | . . . . . . . . . 1 . . . Terminal Index 1 | . . . . . . . . 1 . . . . Fabricator Index 2 | . . . . . . . . 1 1 . . . Scanalyzer Index 1 | . . . . . 1 . . . . . . . Unreport Threat 8 | . . . . . 3 2 . . 2 . . 1 Zone Layout 4 | . . . . . 1 2 . . 1 . . . EX-Prototype ID Bank 1 | . . . 1 . . . . . . . . . Fabricator Hacks 10 | . . . . . . 3 . 5 2 . . . Load Schematic 4 | . . . . . . 1 . 2 1 . . . Build 6 | . . . . . . 2 . 3 1 . . . Repair Station Hacks 3 | . . . . . 3 . . . . . . . Scan Component 2 | . . . . . 2 . . . . . . . Repair 1 | . . . . . 1 . . . . . . . Recycling Unit Hacks 3 | . . . . . . 1 . . . 1 . 1 Retrieve Components 3 | . . . . . . 1 . . . 1 . 1 Scanalyzer 4 | . . . . . 4 . . . . . . . Insert Component 2 | . . . . . 2 . . . . . . . Analyze 2 | . . . . . 2 . . . . . . . Garrison Access Hacks 5 | . . . . . . . . . 1 2 1 1 Seal Access 5 | . . . . . . . . . 1 2 1 1 Unauthorized Hacks 60 | . 2 . . . 4 11 9 17 7 3 2 5 Terminals 15 | . 1 . . . 2 2 3 1 2 1 1 2 Assimilate 4 | . . . . . . . 1 . 1 1 1 . Botnet 11 | . 1 . . . 2 2 2 1 1 . . 2 Fabricators 5 | . . . . . . 1 . 3 1 . . . Prioritize 1 | . . . . . . . . 1 . . . . Siphon 4 | . . . . . . 1 . 2 1 . . . Repair Stations . | . . . . . . . . . . . . . Recycling Units . | . . . . . . . . . . . . . Scanalyzers . | . . . . . . . . . . . . . Garrison Access 1 | . . . . . . . . 1 . . . . Reprogram 1 | . . . . . . . . 1 . . . . Data Cores Recovered . | . . . . . . . . . . . . . Used . | . . . . . . . . . . . . . Hacking Detections 33 | . 2 . . . 5 5 5 5 5 2 1 3 Full Trace Events 2 | . . . . . 1 1 . . . . . . Feedback Events 1 | . . . . . . 1 . . . . . . Corruption 1 | . . . . . . 1 . . . . . . Feedback Blocked . | . . . . . . . . . . . . . Robot Schematics Acquired . | . . . . . . . . . . . . . Robots Built . | . . . . . . . . . . . . . Matter . | . . . . . . . . . . . . . Time . | . . . . . . . . . . . . . Total Robot Build Rating . | . . . . . . . . . . . . . Part Schematics Acquired 5 | . . . . . 1 . . 2 2 . . . Parts Built 7 | . . . . . . 2 . 3 2 . . . Matter 929 | . . . . . . 328 . 426 175 . . . Time 256 | . . . . . . 76 . 141 39 . . . Total Part Build Rating 35 | . . . . . . 6 . 15 14 . . . Parts Repaired 1 | . . . . . 1 . . . . . . . Time 76 | . . . . . 76 . . . . . . . Parts Recycled . | . . . . . . . . . . . . . Recycled Matter . | . . . . . . . . . . . . . Retrieved Matter . | . . . . . . . . . . . . . Retrieved Components 1 | . . . . . . . . . . . . 1 Parts Scanalyzed 2 | . . . . . 2 . . . . . . . Part Schematics Acquired 1 | . . . . . 1 . . . . . . . Parts Damaged 1 | . . . . . 1 . . . . . . . Bothacking | -11 -10 -10 -10 -9 -8 -7 -6 -5 -4 -3 -2 -1 ------------ Run | Scr Mat Min Exi Min Mat Fac Fac Fac Fac Res Res Acc Used RIF Installer . | . . . . . . . . . . . . . Robots Hacked . | . . . . . . . . . . . . . Non-combat . | . . . . . . . . . . . . . Combat . | . . . . . . . . . . . . . Robot Hacks Applied . | . . . . . . . . . . . . . Relay Couplers Released . | . . . . . . . . . . . . . Robots Rewired . | . . . . . . . . . . . . . Allies Hacked . | . . . . . . . . . . . . . Hacks Repelled . | . . . . . . . . . . . . . Allies | -11 -10 -10 -10 -9 -8 -7 -6 -5 -4 -3 -2 -1 -------- Run | Scr Mat Min Exi Min Mat Fac Fac Fac Fac Res Res Acc Total Allies 3 | . . . . . . . 1 . . 1 1 . Largest Group 1 | . . . . . . . 1 1 1 1 1 1 Highest-Rated Group 44 | . . . . . . . 26 26 26 44 26 26 Highest-Rated Ally 44 | . . . . . . . 26 26 26 44 26 26 Total Orders 4 | . . . . . . . . 2 2 . . . STAY 2 | . . . . . . . . 1 1 . . . FOLLOW 2 | . . . . . . . . 1 1 . . . Ally Attacks . | . . . . . . . . . . . . . Total Damage . | . . . . . . . . . . . . . Kills . | . . . . . . . . . . . . . Allies Corrupted . | . . . . . . . . . . . . . Allies Melted . | . . . . . . . . . . . . . Intel | -11 -10 -10 -10 -9 -8 -7 -6 -5 -4 -3 -2 -1 ------- Run | Scr Mat Min Exi Min Mat Fac Fac Fac Fac Res Res Acc Robot Analysis Total 3 | . 3 . . . . . . . . . . . Derelict Logs Recovered . | . . . . . . . . . . . . . Drone Launches . | . . . . . . . . . . . . . Drone Recoveries . | . . . . . . . . . . . . . Exploration | -11 -10 -10 -10 -9 -8 -7 -6 -5 -4 -3 -2 -1 ------------- Run | Scr Mat Min Exi Min Mat Fac Fac Fac Fac Res Res Acc Turns Passed 4506 | 260 273 11 214 262 922 752 209 435 370 330 117 351 Spaces Moved 5047 | 190 227 12 221 184 545 677 429 683 525 519 203 632 Core 90 | 6 . . . . . . . . . . 1 83 Treads . | . . . . . . . . . . . . . Legs . | . . . . . . . . . . . . . Wheels 1963 | 184 227 12 221 184 545 590 . . . . . . Hover 90 | . . . . . . . . . . . . 90 Flight 2904 | . . . . . . 87 429 683 525 519 202 459 Fastest Speed 29 | 50 86 96 96 96 100 29 29 30 30 37 40 40 Average Speed 60 | 88 95 96 96 98 106 90 29 30 34 37 41 44 Slowest Speed 300 | 200 96 96 96 100 110 100 30 30 37 37 300 150 Overloaded Moves . | . . . . . . . . . . . . . Propulsion Burnouts . | . . . . . . . . . . . . . Robots Hopped 16 | . . . . . . . 2 2 4 2 1 5 Cave-ins Triggered 1 | . 1 . . . . . . . . . . . Exploration Rate (%) 24 | 6 39 4 61 42 44 18 20 16 15 18 8 21 Regions Visited 12 Branch Regions 3 Pre-discovered Areas . | . . . . . . . . . . . . . Known Exits Taken 6 | . 1 . . . . 1 1 1 1 . 1 . Unknown Exits Taken 6 | 1 . 1 1 1 1 . . . . 1 . . Scrap Searched . | . . . . . . . . . . . . . Spaces Dug 54 | . 7 . . . . . 9 4 5 15 4 10 Terrain Destroyed 120 | . 7 . . 18 37 11 9 4 5 15 4 10 Melee 47 | . . . . . . . 9 4 5 15 4 10 Projectile 7 | . 7 . . . . . . . . . . . AOE 66 | . . . . 18 37 11 . . . . . . Actions | -11 -10 -10 -10 -9 -8 -7 -6 -5 -4 -3 -2 -1 --------- Run | Scr Mat Min Exi Min Mat Fac Fac Fac Fac Res Res Acc Total 6226 | 237 263 11 224 242 849 803 487 893 684 628 220 685 Wait 832 | 5 14 . . 39 226 84 35 185 129 94 1 20 Move 5003 | 189 226 11 220 183 544 676 424 678 516 514 200 622 Hop 16 | . . . . . . . 2 2 4 2 1 5 Pick Up 21 | 2 2 . 1 1 7 . 2 2 2 . 1 1 Fast Attach 73 | 21 7 . . 4 11 11 5 4 2 . 2 6 Attach 9 | . . . . 4 1 . . . . . . 4 Detach 35 | 2 5 . 3 1 8 6 1 3 1 . . 5 Swap 30 | . . . . . 6 5 . 6 7 1 4 1 Drop 58 | 2 2 . . . 14 15 4 3 6 . 3 9 Fire 68 | 16 7 . . 10 32 3 . . . . . . Melee 80 | . . . . . . 3 14 10 17 17 8 11 Ram 1 | . . . . . . . . . . . . 1 Kick . | . . . . . . . . . . . . . Crush . | . . . . . . . . . . . . . Escape Stasis . | . . . . . . . . . . . . . Rewire . | . . . . . . . . . . . . . Trap . | . . . . . . . . . . . . . Miscellaneous . | . . . . . . . . . . . . . Route ------- -11/Scrapyard -10/Materials (discovered 2 exits: [*Mat] / *Min) -10/Mines -10/Exiles -9/Mines -8/Materials -7/Factory (discovered 6 exits: *Fac x4 / [*Low x2]) -6/Factory (discovered 4 exits: *Fac x4) -5/Factory (discovered 5 exits: *Fac x4 / [*Ext]) -4/Factory (discovered 4 exits: *Res x4) -3/Research (discovered 2 exits: *Res / [*Tes]) -2/Research (discovered 3 exits: *Acc x3) -1/Access (discovered 1 exit: Sur) History --------- Turn | Location | Event 2 | -11/Scrapyard | Met Revision 17 23 | -11/Scrapyard | Discovered new exit (range 15) 261 | -11/Scrapyard | Entered Materials 321 | -10/Materials | Build established: Scavenger-Skirmisher 413 | -10/Materials | Discovered new exit (range 9) 426 | -10/Materials | Identified exit to Mines 468 | -10/Materials | Crushed by falling debris 534 | -10/Materials | Entered Mines 541 | -10/Mines | Deemed a non-threat by the Exiles lab entrance 541 | -10/Mines | Discovered new exit (range 5) 545 | -10/Mines | Entered Exiles 573 | -10/Exiles | Met 8R-AWN 586 | -10/Exiles | Met EX-HEX 613 | -10/Exiles | Met EX-BIN 628 | -10/Exiles | Aligned with FarCom system 629 | -10/Exiles | Given EX-Vault access code 652 | -10/Exiles | Opened EX-Vault 660 | -10/Exiles | Found Trap Reconfigurator 680 | -10/Exiles | Warned to stay clear of 0b10 Research branches 692 | -10/Exiles | Exiles lab attacked by MAIN.C 743 | -10/Exiles | Build established: Scavenger-Mutant 751 | -10/Exiles | Discovered new exit (range 11) 759 | -10/Exiles | Left Exiles lab with Trap Reconfigurator 759 | -10/Exiles | Entered Mines 835 | -9/Mines | Assembled infested the area 925 | -9/Mines | Lost 4 parts (2p1n1w) 998 | -9/Mines | Discovered new exit (range 11) 1021 | -9/Mines | Entered Materials 1021 | -8/Materials | Devolved, losing 2 slots: Power x-1, Utility x-1 1305 | -8/Materials | Build established: Scavenger-Skirmisher 1498 | -8/Materials | Discovered new exit (range 16) 1753 | -8/Materials | Repaired Broken Imp. VTOL Module 1847 | -8/Materials | Build established: Scavenger-Mutant 1943 | -8/Materials | Entered Factory 1943 | -7/Factory | Devolved, losing 1 slot: Propulsion x-1 2158 | -7/Factory | Identified exit to Factory 2220 | -7/Factory | Build established: Mutant 2242 | -7/Factory | Discovered new exit (range 16) 2411 | -7/Factory | Discovered new exit (range 14) 2617 | -7/Factory | Fabricated Imp. VTOL Module (x1) 2655 | -7/Factory | Fabricated Imp. VTOL Module (x1) 2695 | -7/Factory | Entered another Factory area 2695 | -6/Factory | Devolved, losing 1 slot: Propulsion x-1 2888 | -6/Factory | Identified exit to Factory 2904 | -6/Factory | Entered another Factory area 2904 | -5/Factory | Accompanied by 1 ally 2904 | -5/Factory | Devolved, losing 1 slot: Weapon x-1 2973 | -5/Factory | Discovered new exit (range 12) 2975 | -5/Factory | Identified exit to Factory 3065 | -5/Factory | Fabricated Imp. Hacking Suite? 3211 | -5/Factory | Fabricated Imp. Hacking Suite? 3274 | -5/Factory | Fabricated Imp. Hacking Suite? 3301 | -5/Factory | Build established: Hacker-Scout 3339 | -5/Factory | Entered another Factory area 3339 | -4/Factory | Accompanied by 1 ally 3339 | -4/Factory | Devolved, losing 1 slot: Weapon x-1 3350 | -4/Factory | Identified exit to Research 3435 | -4/Factory | Fabricated Field Propulsion Array (x2) 3709 | -4/Factory | Entered Research 3709 | -3/Research | Accompanied by 1 ally 3709 | -3/Research | Devolved, losing 1 slot: Weapon x-1 3798 | -3/Research | Discovered new exit (range 10) 4004 | -3/Research | Discovered new exit (range 15) 4039 | -3/Research | Entered another Research area 4039 | -2/Research | Devolved, losing 1 slot: Propulsion x-1 4108 | -2/Research | Identified exit to Access 4156 | -2/Research | Entered Access 4156 | -1/Access | Accompanied by 1 ally 4156 | -1/Access | Devolved, losing 1 slot: Propulsion x-1 4215 | -1/Access | Identified exit to Surface 4468 | -1/Access | Spotted B-99 Colossus 4472 | -1/Access | Spotted B-99 Colossus 4490 | -1/Access | Core integrity fell below 50% 4504 | -1/Access | Lost 5 parts (1p2n2u) 4505 | -1/Access | Core integrity fell below 20% 4507 | -1/Access | Destroyed by G-73 Enforcer with Phase Gun Last Messages --------------- 04473_ Slug penetrates Wall. 04473_ Penetrated by Slug. 04473_ Imp. Antigrav System destroyed. 04473_ Imp. Hacking Suite destroyed. 04476_ W-44 Eye sends out distress signal. 04481_ ALERT: Rogue bot located, Programmers report to Access Zone 8N. 04486_ Penetrated by Slug. 04486_ Slug penetrates Wall. 04492_ Penetrated by Slug. 04494_ U-05 Engineer lays Concrete. 04495_ Slug penetrates K-01 Serf. 04501_ Connecting with Terminal... >>Trojan(Botnet) Trojan loaded successfully. Testing... Terminal linked with 1 system. Awaiting botnet instructions. 04501_ Terminal disabled. 04503_ K-01 Serf collects debris. 04505_ Slammed into P-80 Master. Map ----- +----------------------------------------------------+ | ???????????????????# ????????????????????? | | ???????????????????# ????????????????????? | | ???????????????????# ?????????????????????# | | ???????????????????# ?????????????????????# | | ???????????????????? ?????????????????????# | | ????????????????????? ?????????????????????# | | ??????????????????????? = ?????????????????????# | | ???????????????????????? ?????????????????????# | | ???????????????????????###+##???????????????????## | | ?????????????########### ##########+########## | | ???????????? h "" | | ???????????????? pp | | ????????????????????#### ##########+########## | | ???????????????????????## ##??????? ???????## | | ????????????????????????# #?????? ??????? | | ????????????????????????# #????# ????? | | ????????????????????????# #????# #???? | | ????????????????????????# #????# #???? | | ????????????????????????#p #????# #???? | | ????????????????????????# #????# == #???? | | ????????????????????????# #????# == ! #???? | | ????????????????????????# p#????# #???? | | ????????hh??????????????#p #????# #???? | | ????????????????????????# #????# #???? | | ????????????????????????# #????# #???? | | ????????????????????????#@g#????##############???? | | ????????????????????????# #?????????????????????? | | ????????????????????????# #?????????????????????? | | ????????????????????????# #???????????????????### | | ????????????????????????#gg"???????????????????" | | ????????????????????????# "???????????????????" | | ????????????????????????# g ??????????????????" | | ????????w???????????????# ??????????????????" | | ????????????????????????# ?????????????????" | | ????????????????????????# ?????????